fUST/lending_fUST_20250603
["ID","MTS","AMOUNT","RATE_DAILY","PERIOD"]
[363946127,1748943045726,-695.3968022,0.00022739,2]
[363946129,1748943045735,-477.88460962,0.00022739,2]
[363946131,1748943045745,-397.89,0.00022739,2]
[363946133,1748943045754,-473.65384513,0.00022739,2]
[363946135,1748943045764,-493.20421634,0.00022739,2]
[363946137,1748943045773,-917.81,0.00022768,7]
[363946139,1748943045782,-15156.0,0.000228,2]
[363946142,1748943045791,-552.03,0.000228,14]
[363946145,1748943045800,-151.0,0.000228,7]
[363946147,1748943045810,-3592.62,0.000228,7]
[363946150,1748943045820,-175.655,0.000228,2]
[363946153,1748943045830,-200.0,0.00022801,2]
[363946156,1748943045839,-962.0,0.00022845,2]
[363946159,1748943045849,-159.79694846,0.00022849,2]
[363946161,1748943045858,-231.28369723,0.00022868,2]
[363946162,1748943045867,-917.81,0.00022868,7]
[363946163,1748943045877,-2000.0,0.00022887,2]
[363946164,1748943045887,-660.56,0.000229,7]
[363946165,1748943045896,-638.0,0.000229,2]
[363946166,1748943045905,-5000.0,0.00022927,2]
[363946167,1748943045915,-917.81,0.00022968,3]
[363946168,1748943045924,-1565.76036882,0.00022969,8]
[363946169,1748943045934,-157.833019,0.00022969,7]
[363946170,1748943045944,-9613.44781146,0.00023,7]
[363946171,1748943045953,-500.0,0.00023,2]
[363946172,1748943045963,-500.0,0.00023,2]
[363946173,1748943045973,-51546.62760447,0.00023,2]
[363946191,1748943046294,-430.0,0.00016438,2]
[363946193,1748943046303,-440.0,0.00016438,2]
[363946195,1748943046313,-440.0,0.00016438,2]
[363946197,1748943046323,-217.4782507,0.00016711,2]
[363946199,1748943046333,-440.0,0.00016712,2]
[363946201,1748943046342,-305.65369772,0.00016712,2]
[363946203,1748943046352,-440.0,0.00016986,2]
[363946205,1748943046361,-440.0,0.0001726,2]
[363946207,1748943046371,-440.0,0.00017534,2]
[363946209,1748943046381,-440.0,0.00017808,2]
[363946211,1748943046392,-440.0,0.00018082,2]
[363946213,1748943046402,-468.1,0.00018356,2]
[363946215,1748943046412,-2225.0,0.00019845,2]
[363946217,1748943046422,-2225.0,0.00022845,2]
[363946219,1748943046431,-119628.79893454,0.00023,2]
[363946221,1748943046441,-9881.50128003,0.00023,2]
[363946223,1748943046450,-2050.69174588,0.00023,7]
[363946225,1748943046460,-3035.85889713,0.00023,10]
[363946227,1748943046471,-96964.14110287,0.00023,10]
[363946229,1748943046481,-100000.0,0.00023,20]
[363946231,1748943046491,-26154.0,0.00023,2]
[363946233,1748943046501,-19432.0,0.00023,2]
[363946235,1748943046511,-10426.0,0.00023,2]
[363946237,1748943046521,-93672.6967901,0.00023,2]
[363946240,1748943046532,-18013.12052386,0.00023,2]
[363946242,1748943046541,-31200.05621919,0.00023,2]
[363946244,1748943046551,-151.0,0.00023,7]
[363946245,1748943046560,-151.0,0.00023,7]
[363946247,1748943046569,-151.0,0.00023,7]
[363946250,1748943046579,-151.0,0.00023,7]
[363946252,1748943046589,-151.0,0.00023,7]
[363946254,1748943046599,-151.0,0.00023,7]
[363946256,1748943046608,-280.23580309,0.00023,7]
[363946258,1748943046618,-151.0,0.00023,7]
[363946260,1748943046627,-151.0,0.00023,7]
[363946262,1748943046636,-151.0,0.00023,7]
[363946264,1748943046645,-151.0,0.00023,7]
[363946266,1748943046654,-152.554458,0.00023,7]
[363946268,1748943046664,-151.0,0.00023,7]
[363946270,1748943046677,-151.0,0.00023,7]
[363946271,1748943046688,-272.087332,0.00023,7]
[363946273,1748943046697,-151.0,0.00023,7]
[363946275,1748943046706,-289.63493,0.00023,7]
[363946278,1748943046718,-151.0,0.00023,7]
[363946280,1748943046728,-353.09355,0.00023,7]
[363946282,1748943046737,-353.09355,0.00023,7]
[363946283,1748943046748,-353.09355,0.00023,7]
[363946285,1748943046758,-353.09355,0.00023,7]
[363946287,1748943046767,-353.09355,0.00023,7]
[363946289,1748943046777,-353.09355,0.00023,7]
[363946291,1748943046788,-194.475236,0.00023,7]
[363946293,1748943046799,-194.475236,0.00023,7]
[363946296,1748943046811,-194.475236,0.00023,7]
[363946297,1748943046823,-194.475236,0.00023,7]
[363946299,1748943046835,-194.475236,0.00023,7]
[363946301,1748943046844,-194.475236,0.00023,7]
[363946303,1748943046854,-151.0,0.00023,7]
[363946305,1748943046864,-151.0,0.00023,7]
[363946307,1748943046874,-151.0,0.00023,7]
[363946309,1748943046884,-151.0,0.00023,7]
[363946311,1748943046893,-151.0,0.00023,7]
[363946313,1748943046903,-151.0,0.00023,7]
[363946315,1748943046912,-151.0,0.00023,7]
[363946317,1748943046922,-151.0,0.00023,7]
[363946319,1748943046931,-151.0,0.00023,7]
[363946321,1748943046941,-208.90801,0.00023,7]
[363946323,1748943046950,-574.694025,0.00023,7]
[363946326,1748943046960,-574.694025,0.00023,7]
[363946328,1748943046970,-574.694025,0.00023,7]
[363946330,1748943046979,-151.0,0.00023,7]
[363946332,1748943046989,-151.0,0.00023,7]
[363946333,1748943046999,-151.0,0.00023,7]
[363946336,1748943047009,-182.008486,0.00023,7]
[363946338,1748943047019,-151.0,0.00023,7]
[363946340,1748943047030,-151.0,0.00023,7]
[363946342,1748943047040,-151.0,0.00023,7]
[363946344,1748943047049,-367.38058,0.00023,7]
[363946346,1748943047058,-367.38058,0.00023,7]
[363946348,1748943047067,-367.38058,0.00023,7]
[363946350,1748943047076,-367.38058,0.00023,7]
[363946352,1748943047085,-367.38058,0.00023,7]
[363946354,1748943047095,-367.38058,0.00023,7]
[363946356,1748943047104,-151.0,0.00023,7]
[363946358,1748943047114,-151.0,0.00023,7]
[363946360,1748943047123,-151.0,0.00023,7]
[363946362,1748943047133,-151.0,0.00023,7]
[363946364,1748943047143,-151.0,0.00023,7]
[363946366,1748943047152,-151.0,0.00023,7]
[363946368,1748943047161,-2367.22412,0.00023,2]
[363946370,1748943047171,-2367.22412,0.00023,2]
[363946372,1748943047181,-334.611292,0.00023,7]
[363946374,1748943047190,-334.611292,0.00023,7]
[363946376,1748943047201,-334.611292,0.00023,7]
[363946378,1748943047209,-334.611292,0.00023,7]
[363946380,1748943047218,-334.611292,0.00023,7]
[363946382,1748943047227,-334.611292,0.00023,7]
[363946384,1748943047236,-452.121155,0.00023,7]
[363946387,1748943047253,-452.121155,0.00023,7]
[363946390,1748943047268,-452.121155,0.00023,7]
[363946392,1748943047283,-452.121155,0.00023,7]
[363946394,1748943047295,-452.121155,0.00023,7]
[363946397,1748943047311,-452.121155,0.00023,7]
[363946399,1748943047324,-151.0,0.00023,7]
[363946402,1748943047339,-151.0,0.00023,7]
[363946404,1748943047352,-151.0,0.00023,7]
[363946407,1748943047367,-151.0,0.00023,7]
[363946410,1748943047383,-151.0,0.00023,7]
[363946412,1748943047397,-151.0,0.00023,7]
[363946414,1748943047410,-528.291518,0.00023,2]
[363946417,1748943047424,-528.291518,0.00023,2]
[363946419,1748943047437,-528.291518,0.00023,2]
[363946422,1748943047451,-528.291518,0.00023,2]
[363946424,1748943047464,-528.291518,0.00023,2]
[363946426,1748943047476,-528.291518,0.00023,2]
[363946429,1748943047489,-151.0,0.00023,7]
[363946431,1748943047501,-151.0,0.00023,7]
[363946433,1748943047515,-151.0,0.00023,7]
[363946436,1748943047529,-151.0,0.00023,7]
[363946438,1748943047542,-151.0,0.00023,7]
[363946441,1748943047556,-151.0,0.00023,7]
[363946443,1748943047570,-151.0,0.00023,7]
[363946446,1748943047586,-151.0,0.00023,7]
[363946448,1748943047597,-208.195133,0.00023,7]
[363946450,1748943047608,-933.36661,0.00023,7]
[363946452,1748943047619,-933.36661,0.00023,7]
[363946454,1748943047634,-933.36661,0.00023,7]
[363946457,1748943047647,-933.36661,0.00023,7]
[363946459,1748943047660,-933.36661,0.00023,7]
[363946461,1748943047674,-933.36661,0.00023,7]
[363946463,1748943047686,-229.928415,0.00023,7]
[363946465,1748943047699,-229.928415,0.00023,7]
[363946468,1748943047711,-229.928415,0.00023,7]
[363946470,1748943047722,-229.928415,0.00023,7]
[363946472,1748943047734,-229.928415,0.00023,7]
[363946475,1748943047750,-229.928415,0.00023,7]
[363946477,1748943047761,-160.0,0.00023,3]
[363946479,1748943047773,-327.791094,0.00023,7]
[363946481,1748943047785,-327.791094,0.00023,7]
[363946483,1748943047797,-327.791094,0.00023,7]
[363946486,1748943047811,-327.791094,0.00023,7]
[363946488,1748943047824,-327.791094,0.00023,7]
[363946490,1748943047836,-327.791094,0.00023,7]
[363946493,1748943047848,-181.378252,0.00023,7]
[363946495,1748943047860,-181.378252,0.00023,7]
[363946497,1748943047872,-181.378252,0.00023,7]
[363946499,1748943047884,-181.378252,0.00023,7]
[363946502,1748943047896,-181.378252,0.00023,7]
[363946504,1748943047908,-181.378252,0.00023,7]
[363946506,1748943047919,-151.0,0.00023,7]
[363946508,1748943047930,-151.0,0.00023,7]
[363946511,1748943047942,-151.0,0.00023,7]
[363946513,1748943047954,-1573.240447,0.00023,7]
[363946515,1748943047966,-1573.240447,0.00023,7]
[363946517,1748943047979,-1573.240447,0.00023,7]
[363946520,1748943047991,-151.0,0.00023,7]
[363946522,1748943048003,-151.0,0.00023,7]
[363946524,1748943048015,-151.0,0.00023,7]
[363946526,1748943048027,-151.0,0.00023,7]
[363946529,1748943048040,-1573.240447,0.00023,7]
[363946531,1748943048053,-151.0,0.00023,7]
[363946533,1748943048063,-1573.240447,0.00023,7]
[363946535,1748943048073,-151.0,0.00023,7]
[363946537,1748943048083,-1573.240447,0.00023,7]
[363946539,1748943048093,-151.0,0.00023,7]
[363946541,1748943048103,-151.0,0.00023,7]
[363946543,1748943048113,-151.0,0.00023,7]
[363946545,1748943048124,-151.0,0.00023,7]
[363946547,1748943048134,-151.0,0.00023,7]
[363946549,1748943048143,-151.0,0.00023,7]
[363946551,1748943048153,-151.0,0.00023,7]
[363946553,1748943048163,-151.0,0.00023,7]
[363946555,1748943048174,-153.681365,0.00023,7]
[363946557,1748943048184,-157.303722,0.00023,7]
[363946559,1748943048194,-373.689104,0.00023,7]
[363946561,1748943048204,-373.689104,0.00023,7]
[363946563,1748943048215,-373.689104,0.00023,7]
[363946565,1748943048225,-152.836905,0.00023,7]
[363946568,1748943048235,-373.689104,0.00023,7]
[363946569,1748943048245,-373.689104,0.00023,7]
[363946572,1748943048255,-373.689104,0.00023,7]
[363946574,1748943048265,-151.0,0.00023,7]
[363946576,1748943048275,-151.0,0.00023,7]
[363946577,1748943048284,-151.0,0.00023,7]
[363946580,1748943048294,-299.161862,0.00023,7]
[363946582,1748943048303,-299.161862,0.00023,7]
[363946584,1748943048313,-299.161862,0.00023,7]
[363946586,1748943048323,-299.161862,0.00023,7]
[363946588,1748943048332,-299.161862,0.00023,7]
[363946590,1748943048343,-299.161862,0.00023,7]
[363946592,1748943048353,-451.653601,0.00023,7]
[363946594,1748943048362,-451.653601,0.00023,7]
[363946596,1748943048372,-451.653601,0.00023,7]
[363946598,1748943048382,-451.653601,0.00023,7]
[363946600,1748943048391,-451.653601,0.00023,7]
[363946602,1748943048401,-451.653601,0.00023,7]
[363946604,1748943048411,-160.0,0.00023,3]
[363946606,1748943048421,-2324.435837,0.00023,7]
[363946629,1748943048431,-2324.435837,0.00023,7]
[363946632,1748943048654,-2324.435837,0.00023,7]
[363946634,1748943048666,-2324.435837,0.00023,7]
[363946636,1748943048680,-2324.435837,0.00023,7]
[363946639,1748943048690,-2324.435837,0.00023,7]
[363946641,1748943048701,-456882.61718131,0.00023,14]
[363946650,1748943048787,-440.0,0.00016438,2]
[363946652,1748943048798,-327.04977121,0.00016438,2]
[363946654,1748943048810,-72.95022879,0.00016438,2]
[363946656,1748943048819,-440.0,0.00016712,2]
[363946658,1748943048829,-385.6,0.00016986,2]
[363946660,1748943048840,-709.0,0.00019845,2]
[363946662,1748943048850,-1000.0,0.0002,2]
[363946664,1748943048859,-15200.15,0.000214,10]
[363946666,1748943048869,-5729.20462303,0.000214,2]
[363946668,1748943048879,-709.0,0.00022845,2]
[363946670,1748943048888,-197608.80184851,0.00023,14]
[363946681,1748943048981,-440.0,0.00016438,2]
[363946683,1748943048991,-200.32444105,0.00016438,2]
[363946685,1748943049002,-440.0,0.00016712,2]
[363946687,1748943049012,-440.0,0.00016986,2]
[363946689,1748943049022,-405.0,0.00019845,2]
[363946692,1748943049032,-2200.0,0.00022768,2]
[363946694,1748943049043,-1127.93128168,0.00023,14]
[363946696,1748943049055,-1655.93219746,0.00023,14]
[363951402,1748943153626,500.0,0.00024658,120]
[363951403,1748943161257,500.0,0.00024658,120]
[363951404,1748943171602,1000.0,0.00024658,120]
[363951405,1748943180377,1000.0,0.00024658,120]
[363951406,1748943187261,500.0,0.00024658,120]
[363951407,1748943193526,548.24076,0.00024,120]
[363951408,1748943213861,500.0,0.00024658,120]
[363951409,1748943239712,500.0,0.00024658,120]
[363951410,1748943275483,500.0,0.00024658,120]
[363951411,1748943296198,500.0,0.00024658,120]
[363951412,1748943310326,500.0,0.00024658,120]
[363951413,1748943331575,500.0,0.00024658,120]
[363951414,1748943338385,500.0,0.00024658,120]
[363951415,1748943346071,500.0,0.00024658,120]
[363951416,1748943353232,500.0,0.00024658,120]
[363951417,1748943359749,500.0,0.00024658,120]
[363951418,1748943366032,500.0,0.00024658,120]
[363951419,1748943377359,500.0,0.00024658,120]
[363951420,1748943392879,500.0,0.00024658,120]
[363951421,1748943406932,500.0,0.00024658,120]
[363951422,1748943424244,500.0,0.00024658,120]
[363951423,1748943434818,500.0,0.00024658,120]
[363951424,1748943441272,500.0,0.00024658,120]
[363951425,1748943447508,500.0,0.00024658,120]
[363951426,1748943453777,500.0,0.00024658,120]
[363951428,1748943466915,500.0,0.00024658,120]
[363951429,1748943475809,500.0,0.00024658,120]
[363951430,1748943491630,500.0,0.00024658,120]
[363951431,1748943500041,500.0,0.00024658,120]
[363951432,1748943511410,500.0,0.00024658,120]
[363951433,1748943519927,500.0,0.00024658,120]
[363951434,1748943538345,500.0,0.00024658,120]
[363951435,1748943579888,272.38544,0.00024658,120]
[363951436,1748943604634,204.74560435,0.00024657,120]
[363951439,1748943699709,158.62634,0.00013699,2]
[363951440,1748943714585,270.544082,0.00013699,2]
[363951443,1748944147869,247.91553019,0.00015945,2]
[363951446,1748944213047,5000.0,0.0001605,2]
[363951458,1748944232295,-178.29113569,0.00016338,2]
[363951460,1748944232306,-191.74240087,0.000164,2]
[363951461,1748944232318,-47.47787217,0.000164,2]
[363951462,1748944232328,-300.0,0.00016437,2]
[363951464,1748944232338,-179.02212783,0.00016438,2]
[363951466,1748944232350,-261.76000001,0.00016438,2]
[363951599,1748944399163,162.8143919,0.00015687,2]
[363951600,1748944649905,266.845168,0.00015606,2]
[363951602,1748944697238,157.610266,0.00013699,2]
[363951603,1748944829097,-178.29113565,0.00016338,2]
[363951604,1748944829120,-155.0,0.00016437,2]
[363951605,1748944829144,-1000.0,0.00016437,2]
[363951606,1748944829167,-300.0,0.00016437,2]
[363951607,1748944829192,-300.0,0.00016437,2]
[363951608,1748944829215,-265.55,0.00016438,2]
[363951609,1748944829239,-440.0,0.00016438,2]
[363951610,1748944829263,-531.94472282,0.00016438,2]
[363951611,1748944829285,-354.44294857,0.00016438,2]
[363951612,1748944829307,-430.0,0.00016438,2]
[363951613,1748944829331,-430.0,0.00016438,2]
[363951614,1748944829356,-430.0,0.00016438,2]
[363951615,1748944829380,-430.0,0.00016438,2]
[363951616,1748944829403,-440.0,0.00016438,2]
[363951617,1748944829426,-430.0,0.00016438,2]
[363951618,1748944829450,-430.0,0.00016438,2]
[363951619,1748944829474,-430.0,0.00016438,2]
[363951620,1748944829498,-338.44074391,0.00016438,2]
[363951621,1748944829521,-430.0,0.00016438,2]
[363951622,1748944829544,-430.0,0.00016438,2]
[363951623,1748944829567,-430.0,0.00016438,2]
[363951624,1748944829594,-430.0,0.00016438,2]
[363951625,1748944829622,-430.0,0.00016438,2]
[363951626,1748944829645,-120.72578238,0.00016438,2]
[363951627,1748944829683,-309.27421762,0.00016438,2]
[363951628,1748944829705,-430.0,0.00016438,2]
[363951629,1748944829729,-430.8159445,0.00016438,2]
[363951630,1748944829757,-430.0,0.00016438,2]
[363951631,1748944829781,-430.0,0.00016438,2]
[363951632,1748944829804,-430.0,0.00016438,2]
[363951633,1748944829828,-430.0,0.00016438,2]
[363951634,1748944829854,-430.0,0.00016438,2]
[363951635,1748944829878,-431.1115336,0.00016438,2]
[363951636,1748944829902,-416.17470605,0.00016438,2]
[363951637,1748944829925,-430.0,0.00016438,2]
[363951638,1748944829949,-417.86177832,0.00016438,2]
[363951639,1748944829971,-430.0,0.00016438,2]
[363951640,1748944829994,-430.0,0.00016438,2]
[363951641,1748944830018,-430.0,0.00016438,2]
[363951642,1748944830040,-369.2641632,0.00016438,2]
[363951643,1748944830063,-430.0,0.00016438,2]
[363951644,1748944830087,-430.0,0.00016438,2]
[363951645,1748944830110,-430.0,0.00016438,2]
[363951646,1748944830133,-443.70170323,0.00016438,2]
[363951647,1748944830156,-430.0,0.00016438,2]
[363951648,1748944830177,-434.96709773,0.00016438,2]
[363951649,1748944830345,-311.22418908,0.00016438,2]
[363951650,1748944830384,-118.77581092,0.00016438,2]
[363951651,1748944830408,-430.0,0.00016438,2]
[363951652,1748944830431,-430.0,0.00016438,2]
[363951653,1748944830455,-440.0,0.00016438,2]
[363951654,1748944830479,-440.0,0.00016438,2]
[363951655,1748944830503,-437.9861515,0.00016438,2]
[363951656,1748944830527,-430.0,0.00016438,2]
[363951657,1748944830552,-430.0,0.00016438,2]
[363951658,1748944830574,-332.41062033,0.00016438,2]
[363951659,1748944830598,-323.66393533,0.00016438,2]
[363951660,1748944830629,-440.0,0.00016438,2]
[363951661,1748944830653,-326.49606422,0.00016438,2]
[363951662,1748944830675,-396.79157238,0.00016438,2]
[363951663,1748944830700,-430.0,0.00016438,2]
[363951664,1748944830723,-440.0,0.00016438,2]
[363951665,1748944830746,-430.0,0.00016438,2]
[363951666,1748944830769,-431.01518832,0.00016438,2]
[363951667,1748944830792,-431.67809199,0.00016438,2]
[363951668,1748944830815,-430.0,0.00016438,2]
[363951669,1748944830838,-430.0,0.00016438,2]
[363951670,1748944830860,-430.0,0.00016438,2]
[363951671,1748944830882,-430.0,0.00016438,2]
[363951672,1748944830904,-430.0,0.00016438,2]
[363951673,1748944830926,-295.57789834,0.00016438,2]
[363951674,1748944830960,-134.42210166,0.00016438,2]
[363951675,1748944830983,-430.0,0.00016438,2]
[363951676,1748944831006,-430.0,0.00016438,2]
[363951677,1748944831029,-430.0,0.00016438,2]
[363951678,1748944831052,-430.0,0.00016438,2]
[363951679,1748944831076,-430.0,0.00016438,2]
[363951680,1748944831100,-430.0,0.00016438,2]
[363951681,1748944831121,-430.0,0.00016438,2]
[363951682,1748944831153,-440.0,0.00016438,2]
[363951683,1748944831181,-430.0,0.00016438,2]
[363951684,1748944831206,-430.0,0.00016438,2]
[363951685,1748944831231,-430.0,0.00016438,2]
[363951686,1748944831255,-430.0,0.00016438,2]
[363951687,1748944831280,-430.0,0.00016438,2]
[363951688,1748944831304,-440.0,0.00016438,2]
[363951689,1748944831328,-440.0,0.00016438,2]
[363951690,1748944831352,-430.0,0.00016438,2]
[363951691,1748944831376,-430.0,0.00016438,2]
[363951692,1748944831398,-370.0,0.00016438,2]
[363951693,1748944831421,-408.20804156,0.00016438,2]
[363951694,1748944831444,-430.0,0.00016438,2]
[363951695,1748944831467,-430.0,0.00016438,2]
[363951696,1748944831489,-430.0,0.00016438,2]
[363951697,1748944831514,-41.76519011,0.00016438,2]
[363951698,1748944831562,-388.23480989,0.00016438,2]
[363951699,1748944831586,-440.0,0.00016438,2]
[363951700,1748944831612,-189.22701946,0.00016438,2]
[363951701,1748944831637,-440.0,0.00016438,2]
[363951702,1748944831660,-430.0,0.00016438,2]
[363951703,1748944831685,-440.0,0.00016438,2]
[363951704,1748944831709,-430.0,0.00016438,2]
[363951705,1748944831733,-440.0,0.00016438,2]
[363951706,1748944831755,-371.75727751,0.00016438,2]
[363951707,1748944831778,-370.0,0.00016438,2]
[363951708,1748944831802,-430.0,0.00016438,2]
[363951709,1748944831825,-430.0,0.00016438,2]
[363951710,1748944831854,-430.0,0.00016438,2]
[363951711,1748944831878,-430.0,0.00016438,2]
[363951712,1748944831901,-430.0,0.00016438,2]
[363951713,1748944831924,-500.0,0.00016438,2]
[363951714,1748944831948,-440.0,0.00016438,2]
[363951715,1748944831971,-445.46472631,0.00016438,2]
[363951716,1748944831994,-430.0,0.00016438,2]
[363951717,1748944832020,-430.0,0.00016438,2]
[363951718,1748944832044,-440.0,0.00016438,2]
[363951719,1748944832067,-430.0,0.00016438,2]
[363951720,1748944832089,-379.71150016,0.00016438,2]
[363951721,1748944832127,-147.03090909,0.00016438,2]
[363951722,1748944832152,-410.26265365,0.00016438,2]
[363951723,1748944832176,-440.0,0.00016438,2]
[363951724,1748944832202,-440.0,0.00016438,2]
[363951725,1748944832225,-430.0,0.00016438,2]
[363951726,1748944832249,-430.0,0.00016438,2]
[363951727,1748944832273,-440.0,0.00016438,2]
[363951728,1748944832297,-440.0,0.00016438,2]
[363951729,1748944832321,-430.0,0.00016438,2]
[363951730,1748944832347,-370.0,0.00016438,2]
[363951731,1748944832371,-440.0,0.00016438,2]
[363951732,1748944832395,-440.0,0.00016438,2]
[363951733,1748944832418,-440.0,0.00016438,2]
[363951734,1748944832441,-412.40872131,0.00016438,2]
[363951735,1748944832465,-440.0,0.00016438,2]
[363951736,1748944832488,-430.0,0.00016438,2]
[363951737,1748944832511,-430.0,0.00016438,2]
[363951738,1748944832534,-440.0,0.00016438,2]
[363951739,1748944832557,-440.0,0.00016438,2]
[363951740,1748944832580,-430.0,0.00016438,2]
[363951741,1748944832608,-430.0,0.00016438,2]
[363951742,1748944832632,-430.0,0.00016438,2]
[363951743,1748944832656,-404.69304928,0.00016438,2]
[363951744,1748944832690,-30.68756508,0.00016438,2]
[363951745,1748944832713,-440.0,0.00016438,2]
[363951746,1748944832736,-326.48807226,0.00016438,2]
[363951747,1748944832760,-430.0,0.00016438,2]
[363951748,1748944832784,-581.39860187,0.00016438,2]
[363951749,1748944832809,-500.0,0.00016438,2]
[363951750,1748944832835,-500.0,0.00016438,2]
[363951751,1748944832858,-504.27314778,0.00016438,2]
[363951752,1748944832881,-320.0,0.00016438,2]
[363951753,1748944832905,-440.0,0.00016438,2]
[363951754,1748944832929,-440.0,0.00016438,2]
[363951755,1748944832952,-430.0,0.00016438,2]
[363951756,1748944832975,-440.0,0.00016438,2]
[363951757,1748944833000,-440.0,0.00016438,2]
[363951758,1748944833025,-400.0,0.00016438,2]
[363951759,1748944833051,-440.0,0.00016438,2]
[363951760,1748944833077,-440.0,0.00016438,2]
[363951761,1748944833102,-440.0,0.00016438,2]
[363951762,1748944833278,-440.0,0.00016438,2]
[363951763,1748944833317,-400.0,0.00016438,2]
[363951764,1748944833344,-440.0,0.00016438,2]
[363951765,1748944833371,-440.0,0.00016438,2]
[363951766,1748944833399,-321.54794634,0.00016438,2]
[363951767,1748944833437,-108.45205366,0.00016438,2]
[363951768,1748944833462,-440.0,0.00016438,2]
[363951769,1748944833488,-440.0,0.00016438,2]
[363951770,1748944833514,-431.7491363,0.00016438,2]
[363951771,1748944833539,-440.0,0.00016438,2]
[363951772,1748944833564,-563.21727004,0.00016438,2]
[363951773,1748944833591,-430.0,0.00016438,2]
[363951774,1748944833621,-440.0,0.00016438,2]
[363951775,1748944833645,-430.0,0.00016438,2]
[363951776,1748944833672,-440.0,0.00016438,2]
[363951777,1748944833698,-430.0,0.00016438,2]
[363951778,1748944833720,-559.39795049,0.00016438,2]
[363951779,1748944833743,-440.0,0.00016438,2]
[363951780,1748944833770,-440.0,0.00016438,2]
[363951781,1748944833796,-430.0,0.00016438,2]
[363951782,1748944833822,-440.0,0.00016438,2]
[363951783,1748944833848,-440.0,0.00016438,2]
[363951784,1748944833873,-430.0,0.00016438,2]
[363951785,1748944833899,-440.0,0.00016438,2]
[363951786,1748944833925,-440.0,0.00016438,2]
[363951787,1748944833950,-440.0,0.00016438,2]
[363951788,1748944833978,-491.57892284,0.00016438,2]
[363951789,1748944834149,-219.18107716,0.00016438,2]
[363951790,1748944834173,-440.0,0.00016438,2]
[363951791,1748944834197,-440.0,0.00016438,2]
[363951792,1748944834222,-440.0,0.00016438,2]
[363951793,1748944834245,-430.0,0.00016438,2]
[363951794,1748944834268,-430.7582188,0.00016438,2]
[363951795,1748944834294,-440.0,0.00016438,2]
[363951796,1748944834319,-430.0,0.00016438,2]
[363951797,1748944834344,-440.0,0.00016438,2]
[363951798,1748944834370,-440.0,0.00016438,2]
[363951799,1748944834394,-440.0,0.00016438,2]
[363951800,1748944834419,-440.0,0.00016438,2]
[363951801,1748944834446,-430.0,0.00016438,2]
[363951802,1748944834471,-430.0,0.00016438,2]
[363951803,1748944834495,-440.0,0.00016438,2]
[363951804,1748944834521,-430.0,0.00016438,2]
[363951805,1748944834546,-440.0,0.00016438,2]
[363951806,1748944834571,-430.0,0.00016438,2]